Cogmind - Beta 13 @@@ ROGUE MODE // 2024.07.14 @ 17:27:36 Player: N.W.L Result: Self-destructed Performance ------------- Evolutions (3) 1500 Regions Visited (13) 2600 Robots Destroyed (89) 445 Value Destroyed (3750) 3750 Prototype IDs (37) 740 Alien Tech Used (0) 0 Bonus (2907) 2907 TOTAL SCORE: 11942 Bonus ------- High Alert Combat Kills 133 Entered Garrisons 200 Aligned with FarCom 300 Destroyed Z-Imprinter 1000 Triggered Deep Caves Wall 500 Exposed GOLEM Chamber 500 Acquired ECA 300 Friendly Fire -26 Cogmind --------- Core Integrity 33/700 Matter 191/300 Energy 15/100 System Corruption 0% Temperature Cool (0) Movement Core (400) Ox7 Location -7/Deep Caves Parts ------- > --- POWER (1) -------- (None) > --- PROPULSION (4) --- (None) > --- UTILITY (5) ------ Coolant Injector Coolant Injector Core Analyzer > --- WEAPON (3) ------- Firepult > --- INVENTORY (5) ---- Mini Assault Cannon Thunder Hammer CR-A16's Pointy Stick Peak State ------------ > --- POWER ------------ Zionite Light DM Reactor > --- PROPULSION ------- Heavy Treads Carbon-fiber Leg Armored Wheel > --- UTILITY ---------- Coolant Injector High-capacity Storage Unit Core Analyzer Zionite Weapon Casing Corruption Screen > --- WEAPON ----------- Firepult Bore Cannon > --- INVENTORY -------- Improved Heat Sink Experimental Heat Sink Coolant Injector High-capacity Matter Pod Encrypted Comm Array Zionite Weapon Casing Improved Medium Armor Plating Dynamic Insulation System Thief Drone Bay Hacking Drone Bay Phasing AFG Mini Assault Cannon Rocket Array Remote Datajack Thunder Hammer CR-A16's Pointy Stick [Rating: 77] Favorites ----------- Power Micro Nuclear Core Engine Light Angular Momentum Engine Power Core Micro Nuclear Core Reactor Zionite Light DM Reactor Propulsion Heavy Treads Treads Heavy Treads Leg Aluminum Leg Wheel Armored Huge Wheel Utility Core Analyzer Device Advanced Heat Sink Storage High-capacity Storage Unit Processor Core Analyzer Hackware Hacking Suite Protection Improved Medium Armor Plating Weapon Heavy Assault Rifle Energy Gun Particle Gun Energy Cannon Phase Cannon Ballistic Gun Heavy Assault Rifle Ballistic Cannon Mini Assault Cannon Launcher Missile Launcher Special Weapon Mining Laser Impact Weapon Power Maul Piercing Weapon CR-A16's Pointy Stick Build | -11 -10 -10 -10 -9 -8 -8 -7 -7 -7 -7 -7 -7 -7 ------- Run | Yrd Mat Min Exi Min Mat Gar Fac Was Fac Low Low Zio Dee Slots Evolved 6 | . . . . . 4 . 2 . . . . . . Power . | . . . . . . . . . . . . . . Propulsion 2 | . . . . . 1 . 1 . . . . . . Utility 3 | . . . . . 2 . 1 . . . . . . Weapon 1 | . . . . . 1 . . . . . . . . Parts Attached 142 | . . . . 7 16 22 9 9 34 3 8 14 20 Power 12 | . . . . . 2 2 . . 5 . 1 . 2 Engine 5 | . . . . . 2 . . . 3 . . . . Core 5 | . . . . . . 2 . . 2 . 1 . . Reactor 2 | . . . . . . . . . . . . . 2 Propulsion 19 | . . . . 1 2 8 2 2 . 1 2 . 1 Treads 4 | . . . . . 1 . . 2 . . . . 1 Leg 10 | . . . . . . 7 2 . . . 1 . . Wheel 5 | . . . . 1 1 1 . . . 1 1 . . Hover . | . . . . . . . . . . . . . . Flight . | . . . . . . . . . . . . . . Utility 33 | . . . . 3 2 3 2 2 7 . 1 4 9 Device 15 | . . . . 2 . 2 . 1 3 . . 3 4 Storage 4 | . . . . 1 . 1 . . 1 . . . 1 Processor 4 | . . . . . . . . 1 2 . 1 . . Hackware 1 | . . . . . 1 . . . . . . . . Protection 9 | . . . . . 1 . 2 . 1 . . 1 4 Artifact . | . . . . . . . . . . . . . . Weapon 78 | . . . . 3 10 9 5 5 22 2 4 10 8 Energy Gun 19 | . . . . 1 6 2 3 2 5 . . . . Energy Cannon 15 | . . . . . 1 4 . 2 3 . 1 1 3 Ballistic Gun 10 | . . . . . . . . . 3 1 2 2 2 Ballistic Cannon 6 | . . . . . 1 . . . 3 . . 2 . Launcher 17 | . . . . 1 2 3 1 . 2 1 1 3 3 Special Weapon 2 | . . . . 1 . . . . 1 . . . . Impact Weapon 8 | . . . . . . . 1 1 5 . . 1 . Slashing Weapon . | . . . . . . . . . . . . . . Piercing Weapon 1 | . . . . . . . . . . . . 1 . Special Melee Weapon . | . . . . . . . . . . . . . . Unidentified Prototypes 14 | . . . . 2 3 . 1 1 2 . . 2 3 Parts Lost 30 | . . . . . 5 10 . . 5 . 1 . 9 Power 6 | . . . . . 1 . . . 3 . . . 2 Propulsion 10 | . . . . . 1 4 . . . . 1 . 4 Utility 6 | . . . . . . 3 . . 1 . . . 2 Weapon 8 | . . . . . 3 3 . . 1 . . . 1 Highest Loss Streak 7 | . . . . . 3 6 . . 2 . 1 . 7 To Critical Strikes . | . . . . . . . . . . . . . . Average Slot Usage (%) 73 | . . . . 41 56 58 78 76 81 84 78 91 90 Core 3 | . . . . . . 3 7 7 2 7 7 7 1 Treads 5 | . . . . . 5 3 . 10 15 14 1 . . Leg 5 | . . . . . . 13 29 8 . . . 7 6 Wheel 6 | . . . . 6 11 3 . . . . 10 15 14 Device 8 | . . . . 8 . 1 7 9 12 7 7 14 9 Storage 6 | . . . . 6 9 8 7 7 7 7 7 7 7 Processor 9 | . . . . . . . . 5 13 15 15 15 14 Hackware 1 | . . . . . 9 4 . . . . . . . Protection 3 | . . . . . 2 2 4 10 3 7 3 . 4 Energy Gun 2 | . . . . 6 8 1 10 1 3 . . . . Energy Cannon 3 | . . . . . . 6 6 6 4 . . . 5 Ballistic Gun 4 | . . . . . . . . . 3 14 14 7 5 Ballistic Cannon 4 | . . . . . 2 4 . . 5 7 7 6 8 Launcher 1 | . . . . . 3 5 . . . . . 2 1 Special Weapon 1 | . . . . 13 2 . . . . . . . . Impact Weapon 1 | . . . . . . . 2 7 1 . . 2 . Naked Turns 362 | . 42 54 262 4 . . . . . . . . . Heaviest Build 95 | . . . . 21 41 41 49 61 63 63 68 73 95 Greatest Support 140 | 3 3 3 3 10 20 30 40 140 140 140 40 40 40 Greatest Overweight (x) 4 | . . . . 2 3 4 2 1 . 2 3 1 2 Average Overweight (x) . | . . . . 1 1 1 . . . . 1 1 1 Largest Inventory Capacity 20 | 5 5 5 5 15 15 15 15 15 20 20 20 20 20 Average Capacity 16 | 5 5 5 5 9 15 14 15 15 17 20 20 20 19 Most Carried 20 | . 1 1 5 7 12 15 15 15 20 20 20 20 20 Average Carried 15 | . . 1 3 5 7 11 14 14 17 19 19 19 19 Final Capacity 20 | 5 5 5 5 15 15 15 15 15 20 20 20 20 5 Final Carried 20 | . 1 1 5 7 12 15 15 15 20 18 20 20 3 Class Distribution -------------------- 26% | Mutant 22% | Gunner 19% | Scavenger-Skirmisher 14% | Scavenger-Mutant 8% | Skirmisher 8% | Scavenger-Gunner Dominant Class ---------------- Mutant | -10/Materials Mutant | -10/Mines Mutant | -10/Exiles Skirmisher | -9/Mines Mutant | -8/Materials Scavenger-Mutant | -8/Garrison Scavenger-Mutant | -7/Factory Scavenger-Mutant | -7/Waste Scavenger-Skirmisher | -7/Factory Scavenger-Gunner | -7/Lower Caves Gunner | -7/Lower Caves Mutant | -7/Zion Gunner | -7/Deep Caves Resources | -11 -10 -10 -10 -9 -8 -8 -7 -7 -7 -7 -7 -7 -7 ----------- Run | Yrd Mat Min Exi Min Mat Gar Fac Was Fac Low Low Zio Dee Matter Collected 3485 | 118 . . 164 70 346 579 175 376 875 68 144 129 441 Remotely . | . . . . . . . . . . . . . . Salvage Created 5170 | . . . . 46 365 558 175 1386 1452 50 104 . 1034 Parts 150 | . . . . 5 12 26 3 8 65 3 14 . 14 Haulers Intercepted 3 | . . . . . . . . . 3 . . . . Recyclers Shooed 4 | . . . . 1 1 . 1 . 1 . . . . Parts Field Recycled . | . . . . . . . . . . . . . . Retrieved Matter . | . . . . . . . . . . . . . . Parts Self-Destructed 12 | . . . . . . . . . . 3 7 2 . Prevented . | . . . . . . . . . . . . . . Kills | -11 -10 -10 -10 -9 -8 -8 -7 -7 -7 -7 -7 -7 -7 ------- Run | Yrd Mat Min Exi Min Mat Gar Fac Was Fac Low Low Zio Dee Combat Hostiles Destroyed 89 | . . . . . 9 22 1 5 17 2 5 . 28 Guns 10 | . . . . . 4 2 . . 3 . . . 1 Cannons 22 | . . . . . 1 9 . . 9 . 1 . 2 AOE 43 | . . . . . 4 10 . . 2 2 4 . 21 Classes Destroyed 20 | . . . . 1 5 2 . 1 7 1 . . 3 Worker 5 | . . . . . . . . . 5 . . . . Builder 1 | . . . . . . . . . 1 . . . . Tunneler 3 | . . . . 2 . . . . 1 . . . . Hauler 3 | . . . . . . . . . 3 . . . . Recycler 7 | . . . . . 1 . 1 . 5 . . . . Minesweeper 1 | . . . . . . . . . . 1 . . . Mechanic 1 | . . . . . . . . . 1 . . . . Watcher 1 | . . . . . 1 . . . . . . . . Swarmer 7 | . . . . . . 3 . . . . 4 . . Grunt 38 | . . . . . 7 18 . . 11 2 . . . Brawler 1 | . . . . . 1 . . . . . . . . Duelist 1 | . . . . . . 1 . . . . . . . Sentry 4 | . . . . . 1 . 1 . 2 . . . . Hunter 1 | . . . . . . . . . 1 . . . . Programmer 3 | . . . . . . . . . 2 . 1 . . Heavy 1 | . . . . . . . . . 1 . . . . Compactor 5 | . . . . . . . . 5 . . . . . Z-Light 5 | . . . . . . . . . . . . . 5 Assembled 17 | . . . . . . . . . . . . . 17 Golem 5 | . . . . . . . . . . . . . 5 Best Kill Streak 22 | . . . . 1 5 12 1 2 8 3 4 . 22 Combat Bots Only 22 | . . . . . 3 12 1 2 4 2 4 . 22 Max Kills in Single Turn 11 | . . . . 1 1 2 1 1 2 2 4 . 11 Gunslinging . | . . . . . . . . . . . . . . Exploded 11 | . . . . . 1 2 . . 2 2 4 . 11 Melee . | . . . . . . . . . . . . . . Uniques/NPCs Destroyed 1 | . . . . . . . . . . . . . 1 Z-Imprinter (-7/Deep Caves) Combat | -11 -10 -10 -10 -9 -8 -8 -7 -7 -7 -7 -7 -7 -7 -------- Run | Yrd Mat Min Exi Min Mat Gar Fac Was Fac Low Low Zio Dee Hostile Shots Fired 468 | . . 20 . . 43 123 30 . 132 4 10 . 106 Missed 132 | . . 7 . . 14 38 11 . 33 1 3 . 25 Damage Taken 6817 | . . 105 . . 590 1434 181 63 1413 49 174 . 2808 Core 1202 | . . 105 . . 165 265 . 15 46 . 22 . 584 Absorbed by Shields 17 | . . . . . . 17 . . . . . . . Reduced by Siege Mode 278 | . . . . . . . . . 128 . . . 150 Redirected to Shielding 301 | . . . . . . . . . . . . . 301 Regen/Repaired (Parts) 385 | . . . . . . . . . . . . 385 . Core Remaining (%) 59 | 100 . . . 58 . 21 . . . . . . . Volleys Fired 276 | . . . . 15 36 97 10 8 60 3 19 . 28 Largest 3 | . . . . 1 2 2 2 1 3 2 3 . 3 Hottest 295 | . . . . 45 145 120 118 250 250 45 91 . 295 Shots Fired 377 | . . . . 15 44 99 15 10 127 4 23 . 40 Gun 110 | . . . . 15 24 7 9 . 41 2 5 . 7 Cannon 217 | . . . . . 2 76 6 10 82 . 17 . 24 Launcher 46 | . . . . . 17 16 . . 1 2 1 . 9 Special 4 | . . . . . 1 . . . 3 . . . . Kinetic 127 | . . . . . 1 42 . . 64 2 7 . 11 Thermal 145 | . . . . . 18 23 . 10 59 . 15 . 20 Explosive 46 | . . . . . 17 16 . . 1 2 1 . 9 Electromagnetic 56 | . . . . 15 8 18 15 . . . . . . Robot Hit Streak 27 | . . . . 4 12 13 8 10 27 11 1 . 10 Robot Miss Streak 5 | . . . . 2 3 3 1 2 3 2 2 . 5 Penetration Max . | . . . . . . . . . . . . . . Secondary Targets . | . . . . . . . . . . . . . . Shots Hit Robots 209 | . . . . 11 22 37 14 6 91 3 3 . 22 Core Hits 282 | . . . . 2 24 33 3 13 48 10 6 . 143 Critical Kills . | . . . . . . . . . . . . . . Critical Parts Destroyed 3 | . . . . . . . . . 3 . . . . Critical Strikes 10 | . . . . . 2 4 . . 3 . 1 . . Burn 2 | . . . . . 2 . . . . . . . . Blast 5 | . . . . . . 4 . . . . 1 . . Smash 3 | . . . . . . . . . 3 . . . . Melee Attacks 19 | . . . . . . . 1 . 16 . . 2 . Impact 19 | . . . . . . . 1 . 16 . . 2 . Slashing . | . . . . . . . . . . . . . . Piercing . | . . . . . . . . . . . . . . Sneak Attacks 3 | . . . . . . . . . 3 . . . . Combat Hostiles . | . . . . . . . . . . . . . . Follow-up Attacks . | . . . . . . . . . . . . . . Damage Inflicted 11691 | . . . . 144 1721 2553 209 763 2435 256 213 . 3397 Guns 1160 | . . . . 144 299 44 91 . 475 14 33 . 60 Cannons 3473 | . . . . . 72 1319 118 314 1275 . 36 . 339 Explosions 6573 | . . . . . 1350 1190 . 449 200 242 144 . 2998 Melee 464 | . . . . . . . . . 464 . . . . Ramming 21 | . . . . . . . . . 21 . . . . Kinetic 2170 | . . . . . 51 1118 . . 858 14 69 . 60 Thermal 3270 | . . . . . 221 90 . 763 940 . . . 1256 Explosive 5159 | . . . . . 1350 1190 . . 152 242 144 . 2081 Electromagnetic 607 | . . . . 144 99 155 209 . . . . . . Impact 464 | . . . . . . . . . 464 . . . . Slashing . | . . . . . . . . . . . . . . Piercing . | . . . . . . . . . . . . . . Highest Corruption 16 | . . . . . 5 9 . 16 16 16 16 16 . Average Corruption 13 | . . . . . 5 7 . 10 16 16 16 16 . Corruption Purged 5 | . . . . . . . . 5 . . . . . Corruption Blocked 4 | . . . . . . . . . 2 . 2 . . Effects 188 | . . . . . 7 37 . 12 80 32 18 2 . Message Errors 44 | . . . . . 1 7 . 3 22 9 1 1 . Matter Fused 45 | . . . . . . 7 . 4 23 5 6 . . Heat Flow Errors 21 | . . . . . 2 2 . 1 8 3 5 . . Energy Discharges 20 | . . . . . . 7 . . 6 4 3 . . Parts Fused 3 | . . . . . . . . . 2 1 . . . Data Loss (minor) 21 | . . . . . 1 6 . 1 5 6 1 1 . Data Loss (major) 8 | . . . . . 2 2 . . . 3 1 . . Misfires 5 | . . . . . . . . 2 3 . . . . Alerts 11 | . . . . . 1 4 . 1 3 1 1 . . Misdirections 3 | . . . . . . . . . 3 . . . . Weapon Failures 7 | . . . . . . 2 . . 5 . . . . Overload Shots . | . . . . . . . . . . . . . . Overflow Damage 425 | . . . . . 5 148 . . 250 3 . . 19 Projectiles 162 | . . . . . . 132 . . 19 . . . 11 Explosions 32 | . . . . . 5 16 . . . 3 . . 8 Melee 231 | . . . . . . . . . 231 . . . . Knockbacks 15 | . . . . . . 7 . . 8 . . . . Impact 3 | . . . . . . . . . 3 . . . . Kinetic 12 | . . . . . . 7 . . 5 . . . . Secondary . | . . . . . . . . . . . . . . Self-Inflicted Damage 439 | . . . . . 93 134 . 63 . . 72 . 77 Shots 20 | . . . . . 4 4 . 6 . . 3 . 3 Rammed 3 | . . . . . . . . . 3 . . . . Targets Rammed 3 | . . . . . . . . . 3 . . . . Kicked . | . . . . . . . . . . . . . . Crushed . | . . . . . . . . . . . . . . Highest Temperature 511 | . . . . . 283 203 44 344 243 227 274 . 511 Average Temperature 97 | . . . . . 75 45 20 148 93 109 142 . 177 Received Heat Transfer 1927 | . . . . . 207 627 90 . 504 27 . . 472 Effects 7 | . . . . . . . . . 3 . . . 4 Interference 4 | . . . . . . . . . 3 . . . 1 Damage (major) 3 | . . . . . . . . . . . . . 3 Siege Activations 8 | . . . . . . . . . 7 . . . 1 Total Turns 127 | . . . . . . . . . 112 . . . 15 Longest Duration 38 | . . . . . . . . . 38 . . . 15 Robots Corrupted 2 | . . . . . . 1 1 . . . . . . Combat Hostiles 2 | . . . . . . 1 1 . . . . . . Parts Fried 5 | . . . . 1 . . 2 . 2 . . . . Impact Corruptions 8 | . . . . . . . . . 8 . . . . Robots Melted 10 | . . . . . . . . 5 1 . . . 4 Combat Hostiles 10 | . . . . . . . . 5 1 . . . 4 Parts Melted 28 | . . . . . 1 . . 17 9 . . . 1 Heat Transferred 12664 | . . . . . 555 185 . 3360 2219 . . . 6345 Parts Sabotaged . | . . . . . . . . . . . . . . Parts Stolen . | . . . . . . . . . . . . . . Parts Stripped . | . . . . . . . . . . . . . . Power Chain Reactions . | . . . . . . . . . . . . . . Alert | -11 -10 -10 -10 -9 -8 -8 -7 -7 -7 -7 -7 -7 -7 ------- Run | Yrd Mat Min Exi Min Mat Gar Fac Was Fac Low Low Zio Dee Peak Influence 889 | . 15 20 . 25 253 889 517 180 316 . . . . Initial 466 | . . 5 . . . 46 466 180 126 . . . . Average 244 | . 9 16 . 9 111 454 496 180 202 . . . . Maximum Alert Level 3 | . . . . . 1 3 2 . 1 . . . . Low Security (%) 51 | 100 100 100 . 100 70 24 . 100 45 . . . . Level 1 28 | . . . . . 29 21 . . 54 . . . . Level 2 13 | . . . . . . 25 100 . . . . . . Level 3 6 | . . . . . . 28 . . . . . . . Level 4 . | . . . . . . . . . . . . . . Level 5 . | . . . . . . . . . . . . . . High Security . | . . . . . . . . . . . . . . Max Security . | . . . . . . . . . . . . . . Squads Dispatched 13 | . 1 . . . 1 . . . 11 . . . . Investigation 7 | . 1 . . . . . . . 6 . . . . Extermination 2 | . . . . . . . . . 2 . . . . Reinforcement 4 | . . . . . 1 . . . 3 . . . . Assault . | . . . . . . . . . . . . . . Garrison . | . . . . . . . . . . . . . . Intercept . | . . . . . . . . . . . . . . Searches Triggered . | . . . . . . . . . . . . . . Construction Impeded 1 | . . . . . 1 . . . . . . . . Haulers Reinforced . | . . . . . . . . . . . . . . Active Scanning Responses . | . . . . . . . . . . . . . . Cargo Convoy Interrupts . | . . . . . . . . . . . . . . Stealth | -11 -10 -10 -10 -9 -8 -8 -7 -7 -7 -7 -7 -7 -7 --------- Run | Yrd Mat Min Exi Min Mat Gar Fac Was Fac Low Low Zio Dee Distress Signals 2 | . . . . . 1 . . . 1 . . . . Communications Jammed . | . . . . . . . . . . . . . . Distress Signals . | . . . . . . . . . . . . . . Times Spotted 114 | . 1 3 . . 13 22 1 5 21 2 5 . 41 Peak Tracking Total 23 | . 1 3 . . 3 7 1 2 3 2 4 . 23 Tactical Retreats 4 | . . . . . 1 3 . . . . . . . Traps | -11 -10 -10 -10 -9 -8 -8 -7 -7 -7 -7 -7 -7 -7 ------- Run | Yrd Mat Min Exi Min Mat Gar Fac Was Fac Low Low Zio Dee Traps Triggered 4 | . 1 . . . 1 1 1 . . . . . . Indirectly . | . . . . . . . . . . . . . . Trap Hack Attempts . | . . . . . . . . . . . . . . Triggered . | . . . . . . . . . . . . . . Disarmed . | . . . . . . . . . . . . . . Reprogrammed . | . . . . . . . . . . . . . . Reused . | . . . . . . . . . . . . . . Traps Extracted . | . . . . . . . . . . . . . . Installed . | . . . . . . . . . . . . . . Triggered . | . . . . . . . . . . . . . . Machines | -11 -10 -10 -10 -9 -8 -8 -7 -7 -7 -7 -7 -7 -7 ---------- Run | Yrd Mat Min Exi Min Mat Gar Fac Was Fac Low Low Zio Dee Machines Disabled 9 | . . . . 1 1 5 . . 1 . . . 1 Max in Single Turn 2 | . . . . 1 1 2 . . 1 . . . 1 Garrison Access 1 | . . . . . . . . . 1 . . . . Garrison Relay 2 | . . . . . . 2 . . . . . . . Phase Generator 1 | . . . . . . 1 . . . . . . . Machines Repaired . | . . . . . . . . . . . . . . Machines Dismantled . | . . . . . . . . . . . . . . Machines Sabotaged . | . . . . . . . . . . . . . . Overloaded Fab Kills . | . . . . . . . . . . . . . . Hacking | -11 -10 -10 -10 -9 -8 -8 -7 -7 -7 -7 -7 -7 -7 --------- Run | Yrd Mat Min Exi Min Mat Gar Fac Was Fac Low Low Zio Dee Machines Accessed 22 | . 1 . 2 1 1 3 1 . 11 . 1 1 . Terminals 8 | . . . . . . 3 . . 5 . . . . Fabricators 2 | . . . . . . . . . 2 . . . . Repair Stations 2 | . . . . . . . . . 2 . . . . Recycling Units 2 | . 1 . . . . . 1 . . . . . . Scanalyzers 1 | . . . . . . . . . 1 . . . . Garrison Access 2 | . . . . . 1 . . . 1 . . . . Total Hacks 56 | . 3 . 5 1 1 8 3 . 28 . 1 6 . Successful 29 | . 1 . 5 1 1 4 . . 10 . 1 6 . Failed 27 | . 2 . . . . 4 3 . 18 . . . . Catastrophic 7 | . 1 . . . . 1 1 . 4 . . . . Database Lockouts . | . . . . . . . . . . . . . . Manual 20 | . . . 1 . . 6 . . 8 . . 5 . Terminals 22 | . . . . . . 8 . . 14 . . . . Fabricators 6 | . . . . . . . . . 6 . . . . Repair Stations 4 | . . . . . . . . . 4 . . . . Recycling Units 6 | . 3 . . . . . 3 . . . . . . Scanalyzers 1 | . . . . . . . . . 1 . . . . Garrison Access 4 | . . . . . 1 . . . 3 . . . . Terminal Hacks 18 | . . . 5 1 . 3 . . 2 . 1 6 . Record 4 | . . . 4 . . . . . . . . . . Part Schematic 6 | . . . . . . . . . . . . 6 . Open Door 2 | . . . . 1 . . . . . . 1 . . Branch Access Points 1 | . . . . . . . . . 1 . . . . Emergency Access Points 1 | . . . . . . . . . 1 . . . . Alert Level 1 | . . . . . . 1 . . . . . . . Garrison Registry 1 | . . . . . . 1 . . . . . . . Patrol Navigation 1 | . . . . . . 1 . . . . . . . Derelict Proto ID Bank 1 | . . . 1 . . . . . . . . . . Fabricator Hacks 2 | . . . . . . . . . 2 . . . . Network Status 1 | . . . . . . . . . 1 . . . . Build 1 | . . . . . . . . . 1 . . . . Repair Station Hacks 2 | . . . . . . . . . 2 . . . . Scan Component 2 | . . . . . . . . . 2 . . . . Recycling Unit Hacks 1 | . 1 . . . . . . . . . . . . Retrieve Components 1 | . 1 . . . . . . . . . . . . Scanalyzer . | . . . . . . . . . . . . . . Garrison Access Hacks 2 | . . . . . 1 . . . 1 . . . . Unlock Access 1 | . . . . . 1 . . . . . . . . Seal Access 1 | . . . . . . . . . 1 . . . . Unauthorized Hacks 4 | . . . . . . 1 . . 3 . . . . Terminals 2 | . . . . . . 1 . . 1 . . . . Botnet 1 | . . . . . . . . . 1 . . . . Override 1 | . . . . . . 1 . . . . . . . Fabricators 1 | . . . . . . . . . 1 . . . . Haulers 1 | . . . . . . . . . 1 . . . . Repair Stations . | . . . . . . . . . . . . . . Recycling Units . | . . . . . . . . . . . . . . Scanalyzers 1 | . . . . . . . . . 1 . . . . Extract 1 | . . . . . . . . . 1 . . . . Garrison Access . | . . . . . . . . . . . . . . Data Cores Recovered . | . . . . . . . . . . . . . . Used . | . . . . . . . . . . . . . . Hacking Detections 15 | . 1 . . . 1 3 1 . 9 . . . . Full Trace Events 7 | . 1 . . . . 1 . . 5 . . . . Feedback Events . | . . . . . . . . . . . . . . Feedback Blocked . | . . . . . . . . . . . . . . Robot Schematics Acquired 3 | . . . . . . . . . . . . 3 . Robots Built . | . . . . . . . . . . . . . . Authchips . | . . . . . . . . . . . . . . Time . | . . . . . . . . . . . . . . Total Robot Build Rating . | . . . . . . . . . . . . . . Part Schematics Acquired 23 | . . . . . . . . . 2 . . 21 . Parts Built 2 | . . . . . . . . . 2 . . . . Authchips . | . . . . . . . . . . . . . . Time 84 | . . . . . . . . . 84 . . . . Total Part Build Rating 8 | . . . . . . . . . 8 . . . . Parts Repaired . | . . . . . . . . . . . . . . Time . | . . . . . . . . . . . . . . Parts Recycled . | . . . . . . . . . . . . . . Recycled Matter . | . . . . . . . . . . . . . . Retrieved Matter . | . . . . . . . . . . . . . . Retrieved Components . | . . . . . . . . . . . . . . Parts Scanalyzed . | . . . . . . . . . . . . . . Part Schematics Acquired . | . . . . . . . . . . . . . . Parts Damaged . | . . . . . . . . . . . . . . Bothacking | -11 -10 -10 -10 -9 -8 -8 -7 -7 -7 -7 -7 -7 -7 ------------ Run | Yrd Mat Min Exi Min Mat Gar Fac Was Fac Low Low Zio Dee Used RIF Installer . | . . . . . . . . . . . . . . Robots Hacked 2 | . . . . . . . . . 2 . . . . Non-combat 2 | . . . . . . . . . 2 . . . . Combat . | . . . . . . . . . . . . . . Robot Hacks Applied 2 | . . . . . . . . . 2 . . . . parse_system 1 | . . . . . . . . . 1 . . . . find_recycling 1 | . . . . . . . . . 1 . . . . Relay Couplers Released 6 | . . . . . . 6 . . . . . . . Machine Destruction 6 | . . . . . . 6 . . . . . . . Fabnet Peak Effective % . | . . . . . . . . . . . . . . Robots Rewired . | . . . . . . . . . . . . . . Allies Hacked . | . . . . . . . . . . . . . . Hacks Repelled . | . . . . . . . . . . . . . . Allies | -11 -10 -10 -10 -9 -8 -8 -7 -7 -7 -7 -7 -7 -7 -------- Run | Yrd Mat Min Exi Min Mat Gar Fac Was Fac Low Low Zio Dee Total Allies 2 | . . . . 2 . . . . . . . . . Largest Group 2 | . . . . 2 2 . . . . . . . . Highest-Rated Group 41 | . . . . 41 41 . . . . . . . . Highest-Rated Ally 31 | . . . . 31 31 . . . . . . . . Total Orders 8 | . . . . 2 . . . . . . . 6 . EXPLORE 4 | . . . . . . . . . . . . 4 . RETURN 4 | . . . . 2 . . . . . . . 2 . Ally Attacks 15 | . . . . . 15 . . . . . . . . Total Damage 191 | . . . . . 191 . . . . . . . . Kills 1 | . . . . . 1 . . . . . . . . Allies Corrupted . | . . . . . . . . . . . . . . Allies Melted . | . . . . . . . . . . . . . . Intel | -11 -10 -10 -10 -9 -8 -8 -7 -7 -7 -7 -7 -7 -7 ------- Run | Yrd Mat Min Exi Min Mat Gar Fac Was Fac Low Low Zio Dee Robot Analysis Total . | . . . . . . . . . . . . . . Derelict Logs Recovered 5 | . . . . 1 . . . . . 1 1 2 . Drone Launches 7 | . . . . 3 . . . . . . . 4 . Drone Recoveries 7 | . . . . 3 . . . . . . . 4 . Exploration | -11 -10 -10 -10 -9 -8 -8 -7 -7 -7 -7 -7 -7 -7 ------------- Run | Yrd Mat Min Exi Min Mat Gar Fac Was Fac Low Low Zio Dee Turns Passed 8498 | 10 42 54 262 631 446 1130 352 285 1770 759 410 1241 1106 Spaces Moved 5538 | 20 72 107 403 546 210 493 215 147 865 407 287 1039 727 Core 941 | 20 72 107 403 309 . 25 . . . . . . 5 Treads 1498 | . . . . . 52 75 . 130 865 376 . . . Legs 412 | . . . . . . 182 212 17 . . 1 . . Wheels 2687 | . . . . 237 158 211 3 . . 31 286 1039 722 Hover . | . . . . . . . . . . . . . . Flight . | . . . . . . . . . . . . . . Fastest Speed 50 | 50 50 50 50 50 95 100 120 120 160 130 110 110 50 Average Speed 123 | 50 50 50 50 98 138 169 138 159 160 157 118 110 112 Slowest Speed 330 | 50 50 50 50 150 320 330 190 190 160 160 330 110 125 Overloaded Moves . | . . . . . . . . . . . . . . Propulsion Burnouts . | . . . . . . . . . . . . . . Robots Hopped . | . . . . . . . . . . . . . . Cave-ins Triggered 1 | . . . . . . 1 . . . . . . . Exploration Rate (%) 49 | 3 21 32 63 94 16 69 5 89 23 59 52 89 77 Regions Visited 13 Branch Regions 7 Pre-discovered Areas 3 | . . . 1 1 . . . . . 1 . . . Known Exits Taken 2 | . . . . . 1 . . . 1 . . . . Unknown Exits Taken 8 | 1 1 1 1 1 . . . . . 1 1 1 . Scrap Searched 6 | . . . . 2 . . . . . 1 1 2 . Spaces Dug 52 | . . . . . 7 15 1 . 8 . 21 . . Terrain Destroyed 396 | . . . . . 79 152 1 . 23 53 27 . 61 Melee 9 | . . . . . . . 1 . 8 . . . . Projectile 47 | . . . . . . 27 . . 8 . 8 . 4 AOE 340 | . . . . . 79 125 . . 7 53 19 . 57 Terrain Rammed . | . . . . . . . . . . . . . . Walls Destroyed . | . . . . . . . . . . . . . . Machines Disabled . | . . . . . . . . . . . . . . Actions | -11 -10 -10 -10 -9 -8 -8 -7 -7 -7 -7 -7 -7 -7 --------- Run | Yrd Mat Min Exi Min Mat Gar Fac Was Fac Low Low Zio Dee Total 6760 | 19 77 106 463 622 317 658 253 191 1104 518 332 1130 970 Wait 657 | . 5 . 56 49 42 28 11 16 91 103 12 68 176 Move 5527 | 19 71 106 402 545 210 492 215 146 864 406 286 1038 727 Hop . | . . . . . . . . . . . . . . Pick Up 52 | . 1 . 4 2 5 10 3 2 15 1 3 2 4 Fast Attach 54 | . . . . 4 12 10 3 4 10 . 3 4 4 Attach 32 | . . . . 2 4 8 3 3 4 1 1 1 5 Detach 22 | . . . . 3 5 4 1 3 2 . 1 1 2 Swap 56 | . . . . 1 . 4 3 2 20 2 4 9 11 Drop 61 | . . . 1 1 3 4 3 7 19 2 3 5 13 Fire 276 | . . . . 15 36 97 10 8 60 3 19 . 28 Melee 19 | . . . . . . . 1 . 16 . . 2 . Ram . | . . . . . . . . . . . . . . Kick . | . . . . . . . . . . . . . . Crush 3 | . . . . . . . . . 3 . . . . Escape Stasis 1 | . . . . . . 1 . . . . . . . Rewire . | . . . . . . . . . . . . . . Trap . | . . . . . . . . . . . . . . Miscellaneous . | . . . . . . . . . . . . . . Route ------- -11/Scrapyard -10/Materials -10/Mines -10/Exiles -9/Mines (discovered 2 exits: *Mat x2) -8/Materials -8/Garrison (discovered 4 exits: *Fac x3 / [Mat]) -7/Factory -7/Waste -7/Factory (discovered 3 exits: *Fac / *Low x2) -7/Lower Caves -7/Lower Caves (discovered 2 exits: Fac / *Zio) -7/Zion (discovered 2 exits: [*Dee] / [*Pro]) -7/Deep Caves (discovered 1 exit: [*Pro]) History --------- Turn | Location | Event 3 | -11/Scrapyard | Discovered new exit (range 16) 11 | -11/Scrapyard | Entered Materials 44 | -10/Materials | Discovered new exit (range 12) 53 | -10/Materials | Entered Mines 104 | -10/Mines | Deemed a non-threat by the Exiles lab entrance 104 | -10/Mines | Discovered new exit (range 5) 107 | -10/Mines | Entered Exiles 120 | -10/Exiles | Met 8R-AWN 129 | -10/Exiles | Met EX-HEX 142 | -10/Exiles | Met EX-BIN 148 | -10/Exiles | Aligned with FarCom system 148 | -10/Exiles | Given EX-Vault access code 160 | -10/Exiles | Opened EX-Vault 163 | -10/Exiles | Found Firepult 174 | -10/Exiles | Warned to stay clear of 0b10 Research branches 182 | -10/Exiles | Exiles lab attacked by MAIN.C 190 | -10/Exiles | Learned location of Zion (-7) 261 | -10/Exiles | Discovered new exit (range 14) 311 | -10/Exiles | Build established: Mutant 369 | -10/Exiles | Left Exiles lab with Firepult 369 | -10/Exiles | Entered Mines 394 | -9/Mines | Found a damaged Exp. Sensor Array with a note attached 395 | -9/Mines | Found Prototype Device 405 | -9/Mines | Identified Exp. Sensor Array 530 | -9/Mines | Assembled infested the area 535 | -9/Mines | Assisted by a Guerilla fighting off Assembled 667 | -9/Mines | Discovered new exit (range 16) 673 | -9/Mines | Found the Drone Emporium 678 | -9/Mines | Found Prototype Device 678 | -9/Mines | Identified Thief Drone Bay 699 | -9/Mines | Build established: Skirmisher 969 | -9/Mines | Discovered new exit (range 11) 1000 | -9/Mines | Entered Materials 1000 | -8/Materials | Accompanied by 2 allies 1000 | -8/Materials | Evolved 4 slots: Propulsion x1, Utility x2, Weapon x1 1005 | -8/Materials | Led the pair of lost Derelicts to an unsafe place 1030 | -8/Materials | Build established: Mutant 1167 | -8/Materials | Lost 3 parts (1p2w) 1446 | -8/Materials | Identified exit to Garrison 1446 | -8/Materials | Entered Garrison 1510 | -8/Garrison | Triggered checkpoint 1587 | -8/Garrison | Garrison Relay disabled 1609 | -8/Garrison | Build established: Scavenger-Skirmisher 1686 | -8/Garrison | Triggered checkpoint 1741 | -8/Garrison | Crushed by falling debris 1921 | -8/Garrison | Core integrity fell below 50% 1932 | -8/Garrison | Triggered checkpoint 2000 | -8/Garrison | Lost 6 parts (2n1u3w) 2023 | -8/Garrison | Destroyed 12 combat bots 2139 | -8/Garrison | Discovered new exit (range 53) 2139 | -8/Garrison | Discovered new exit (range 37) 2139 | -8/Garrison | Discovered new exit (range 20) 2139 | -8/Garrison | Discovered new exit (range 46) 2204 | -8/Garrison | Identified exit to Factory 2252 | -8/Garrison | Phase Generator disabled 2353 | -8/Garrison | Garrison Relay disabled 2542 | -8/Garrison | Triggered checkpoint 2576 | -8/Garrison | Entered Factory 2576 | -7/Factory | Evolved 2 slots: Propulsion x1, Utility x1 2901 | -7/Factory | Found Prototype Launcher 2901 | -7/Factory | Identified Rocket Array 2928 | -7/Factory | Sucked down chute 2928 | -7/Factory | Entered Waste 2943 | -7/Waste | EMP discharged 2946 | -7/Waste | Spotted C-40 Crusher 2949 | -7/Waste | Destroyed C-40 Crusher 3016 | -7/Waste | Spotted C-40 Crusher 3024 | -7/Waste | Build established: Scavenger-Mutant 3027 | -7/Waste | Destroyed C-40 Crusher 3032 | -7/Waste | Spotted C-40 Crusher 3043 | -7/Waste | EMP discharged 3043 | -7/Waste | System corruption reached 10% 3050 | -7/Waste | Spotted C-40 Crusher 3054 | -7/Waste | Destroyed C-40 Crusher 3067 | -7/Waste | Destroyed C-40 Crusher 3083 | -7/Waste | Spotted C-40 Crusher 3111 | -7/Waste | Spotted C-40 Crusher 3119 | -7/Waste | Destroyed C-40 Crusher 3143 | -7/Waste | EMP discharged 3160 | -7/Waste | Discovered new exit (range 11) 3213 | -7/Waste | Entered Factory 3503 | -7/Factory | Build established: Scavenger-Skirmisher 3546 | -7/Factory | Fabricated Coolant Injector (x2) 4485 | -7/Factory | Discovered new exit (range 12) 4544 | -7/Factory | Identified exit to Lower Caves 4983 | -7/Factory | Entered Lower Caves 5166 | -7/Lower Caves | Met a Warlord Commander 5167 | -7/Lower Caves | Learned location of Warlord (-5) 5168 | -7/Lower Caves | Warlord Commander delivered Encrypted Comm Array 5188 | -7/Lower Caves | Found Encrypted Comm Array 5270 | -7/Lower Caves | Build established: Scavenger-Gunner 5340 | -7/Lower Caves | Learned 8 Factory zone layouts 5725 | -7/Lower Caves | Discovered new exit (range 5) 5742 | -7/Lower Caves | Entered another Lower Caves area 6001 | -7/Lower Caves | Encountered a Warlord checkpoint 6004 | -7/Lower Caves | Build established: Gunner 6105 | -7/Lower Caves | Discovered new exit (range 7) 6116 | -7/Lower Caves | Identified exit to Factory 6152 | -7/Lower Caves | Entered Zion 6187 | -7/Zion | System corruption cleaned by Quarantine Array 6209 | -7/Zion | Found Prototype Device 6209 | -7/Zion | Identified Phasing AFG 6235 | -7/Zion | Discovered new exit (range 32) 6256 | -7/Zion | Visited the Megawrench Repair Shop 6261 | -7/Zion | Megawrench repaired 10 parts 6325 | -7/Zion | Learned location of 1 exit from Factory 6552 | -7/Zion | Build established: Mutant 6568 | -7/Zion | Received a visual enhancement algorithm 6660 | -7/Zion | Found CR-A16's Pointy Stick 6737 | -7/Zion | Acquired unknown access codes intercepted by a Zionite 6920 | -7/Zion | Given the Hacking Drone Bay 6920 | -7/Zion | Found Prototype Device 7098 | -7/Zion | Opened final containment barrier to the Deep Caves 7114 | -7/Zion | Discovered new exit (range 5) 7116 | -7/Zion | Saw the warning signs outside the Deep Caves entrance 7389 | -7/Zion | Identified Hacking Drone Bay 7393 | -7/Zion | Entered Deep Caves 7413 | -7/Deep Caves | Build established: Gunner 7608 | -7/Deep Caves | Attacked by Z-Imprinter 7618 | -7/Deep Caves | Destroyed Z-Imprinter 7646 | -7/Deep Caves | Found Prototype Protection 7646 | -7/Deep Caves | Identified Zio. Weapon Casing 7783 | -7/Deep Caves | Found Zio. Weapon Casing 7890 | -7/Deep Caves | Found Zio. Weapon Casing 8062 | -7/Deep Caves | Z-Facility disabled 8260 | -7/Deep Caves | Discovered new exit (range 6) 8438 | -7/Deep Caves | Spotted AG-65386 8452 | -7/Deep Caves | Exposed GOLEM chamber 8453 | -7/Deep Caves | Triggered Deep Caves wall 8469 | -7/Deep Caves | Core integrity fell below 50% 8495 | -7/Deep Caves | Core integrity fell below 20% 8499 | -7/Deep Caves | Self-destructed Last Messages --------------- 08481_ Zio. Weapon Casing destroyed. 08481_ Zio. Light DM Reactor destroyed. 08481_ Arm. Wheel destroyed. 08483_ as-94399 destroyed. 08483_ Destroyed Asb. Hover Unit. 08483_ as-80306 destroyed. 08483_ as-27615 destroyed. 08483_ Destroyed Lgt. Treads. 08483_ H7-HYG(b) destroyed. 08483_ Destroyed Asb. Hover Unit. 08483_ as-06167 destroyed. 08483_ as-33653 destroyed. 08490_ Dropped Hcp. Storage Unit. 08490_ Dropped Rocket Array. 08491_ Dropped Encrypted Comm Array. 08491_ Dropped Phasing AFG. 08492_ Acquired Hcp. Storage Unit. 08494_ Dropped Hcp. Storage Unit. 08494_ Acquired 6 matter. 08499_ Knocked back. Map ----- +----------------------------------------------------+ | ??????????????????????????????????????## | | ?????????????????????????????????????## | | ????????????????????????????????????## | | ???????????????????????????????????## | | ??????????????????????????????????## | | ?????????????????????????????????## ## | | ?????????????????????????????????# ##? | | ?????????????????????????????????# #?# | | ?????????????????????????????????## ### | | ????????????????????????? ??????# | | ??????????????? a ? ??????# | | ?????????????! ??????# | | ?????????? aa [ #?????# | | ?????????" aa #?????#### | | ??????#""" a #????????## | | ??????#GGG #?????????#### | | ??????#GG G ##???????????? | | ??????? #???????????? | | ????????# #?????????### | | ????????" #????????## | | ????????" a% ########## | | ????????" a | | ????????""" a # | | ????????" # | | ????????"" G a ]!! ############# | | ????????" @ a !%%]! ;#??????????? | | ?????????" a ! !!! ;#???????????? | | ????????" ![| ##???????????? | | ????????" #### !] ;#????????????? | | ????????""" ##???# ## ;####????????????? | | ?????????" ??????#### ##???????????????? | | ?????????##;???????????##????????????????? | | | | | | | | | | | | | | | | | | | | | | | | | | | | | | | | | | | | | +----------------------------------------------------+ Best States ------------- Heat Dissipation 60 Coolant Potential 130 Energy Generation 27 Energy Capacity 160 Matter Stores 300 Matter Capacity 300 Sight Range 16 Robot Scan Range 20 Terrain Scan Density 10 EM Shielding 2 Corruption Block 8 Armor Coverage 375 Weapon Shielding 100 Evasion (%) 55 Core Analysis 6 Recoil Reduction 4 Offensive Hacking 10 Item Schematics ----------------- Core Analyzer | -7/Factory | Extracted Transmission Jammer | -7/Factory | Extracted Mak. Spear | -7/Zion | Archive Plasma Rifle | -7/Zion | Archive Adv. Sensor Array | -7/Zion | Archive Imp. Dynamic Insulation System | -7/Zion | Archive Drone Bay | -7/Zion | Archive Gauss Rifle | -7/Zion | Archive Adv. Signal Interpreter | -7/Zion | Archive Flak Gun | -7/Zion | Archive Shock Absorption System | -7/Zion | Archive Power Amplifier | -7/Zion | Archive Imp. EM Pulse Cannon | -7/Zion | Archive Coil Gun | -7/Zion | Archive Gatling Laser | -7/Zion | Archive Phasing Sabre | -7/Zion | Archive HERF Cannon | -7/Zion | Archive Hvy. Riot Gun | -7/Zion | Free Arc Thrower | -7/Zion | Free Battle Rifle | -7/Zion | Free Enh. Flamer | -7/Zion | Free Plasma Flamer | -7/Zion | Free Hvy. Battle Rifle | -7/Zion | Free Robot Schematics ------------------ K-01 Serf | -7/Zion | Archive R-06 Scavenger | -7/Zion | Archive A-02 Transporter | -7/Zion | Archive Fabricated ------------ Coolant Injector | x2 | -7/Factory | Preloaded Alien Tech Used ----------------- None Achievements -------------- None Challenges ------------ None Game ------ Seed SiegeMetafiberLattice Manual? 0 Play Time 01:08:32 Cumulative 197.3 hours Start 2024.07.14 @ 16:19:24 End 2024.07.14 @ 17:27:36 Sessions 1 Manual Loads 0 Difficulty Rogue Special Mode None Game No. 94 Rogue 94 Adventurer 0 Explorer 0 Win Type - Total 4 Types 2/0/2/0/0/0/0/0/0 Lore% 77 Gallery% 84 Achievement% 63 Wizard Run 0 Options --------- Layout 0 ASCII 0 Keyboard 0 Movement Mouse Keybinds 0 Fullscreen 2 Font 14/SmallcapsGlow Map View 72x54 Zoom Use 0% Tactical HUD 1 Map Filters NONE Filters NONE Steam 1 RUN: f795ed13-2bf7-4067-92e1-b0fd363b7ee6